fUSD/lending_fUSD_20250923
["ID","MTS","AMOUNT","RATE_DAILY","PERIOD"]
[387238709,1758664293767,-400.0,0.00025205,3]
[387238710,1758664293777,-400.0,0.00025205,3]
[387238711,1758664293786,-505.54,0.00025205,3]
[387238712,1758664293796,-400.0,0.00025205,3]
[387238713,1758664293806,-1000.0,0.00025205,3]
[387238714,1758664293815,-400.0,0.00025205,3]
[387238715,1758664293825,-2523.28,0.00025205,3]
[387238716,1758664293835,-654.93,0.00025205,3]
[387238717,1758664293844,-760.67,0.00025205,3]
[387238718,1758664293853,-562.75,0.00025205,3]
[387238719,1758664293863,-400.0,0.00025205,3]
[387238720,1758664293872,-1733.39,0.00025205,3]
[387238721,1758664293881,-2310.41,0.00025205,3]
[387238722,1758664293891,-400.0,0.00025205,3]
[387238723,1758664293900,-400.0,0.00025205,3]
[387238724,1758664293910,-509.9435066,0.00025205,3]
[387238725,1758664293919,-2604.18,0.00025205,3]
[387238726,1758664293929,-551.29,0.00025205,3]
[387238727,1758664293938,-1966.27,0.00025205,3]
[387238728,1758664293948,-1174.67,0.00025205,3]
[387238729,1758664293958,-2276.88,0.00025205,3]
[387238730,1758664293969,-400.0,0.00025205,3]
[387238731,1758664293978,-410.65051819,0.00025205,3]
[387238732,1758664293988,-421.49,0.00025205,3]
[387238733,1758664293997,-400.0,0.00025205,3]
[387238734,1758664294006,-706.26,0.00025205,3]
[387238735,1758664294016,-2647.87,0.00025205,3]
[387238736,1758664294026,-3628.11,0.00025205,3]
[387238737,1758664294035,-565.31,0.00025205,3]
[387238738,1758664294045,-1829.63,0.00025205,3]
[387238739,1758664294054,-3130.39,0.00025205,3]
[387238740,1758664294063,-2516.63,0.00025205,3]
[387238741,1758664294072,-1595.55,0.00025205,3]
[387238742,1758664294082,-400.0,0.00025205,3]
[387238743,1758664294091,-400.0,0.00025205,3]
[387238744,1758664294100,-400.0,0.00025205,3]
[387238745,1758664294109,-400.0,0.00025205,3]
[387238746,1758664294119,-1399.27,0.00025205,3]
[387238747,1758664294129,-400.0,0.00025205,3]
[387238748,1758664294138,-1323.37,0.00025205,3]
[387238749,1758664294148,-4362.99,0.00025205,3]
[387238750,1758664294158,-2164.69,0.00025205,3]
[387238751,1758664294167,-400.0,0.00025205,3]
[387238752,1758664294176,-2557.76,0.00025205,3]
[387238753,1758664294186,-410.88,0.00025205,3]
[387238754,1758664294195,-554.53,0.00025205,3]
[387238755,1758664294205,-2696.65,0.00025205,3]
[387238756,1758664294214,-2080.13,0.00025205,3]
[387238757,1758664294224,-436.41,0.00025205,3]
[387238758,1758664294233,-400.0,0.00025205,3]
[387238759,1758664294242,-1822.61,0.00025205,3]
[387238760,1758664294253,-400.0,0.00025205,3]
[387238761,1758664294262,-7563.58,0.00025205,3]
[387238762,1758664294271,-3272.4,0.00025205,3]
[387238763,1758664294280,-2197.93,0.00025205,3]
[387238764,1758664294289,-2668.58,0.00025205,3]
[387238765,1758664294299,-400.0,0.00025205,3]
[387238766,1758664294308,-1439.94,0.00025205,3]
[387238767,1758664294318,-1694.56,0.00025205,3]
[387238768,1758664294327,-400.0,0.00025205,3]
[387238769,1758664294337,-400.0,0.00025205,3]
[387238770,1758664294346,-547.88,0.00025205,3]
[387238771,1758664294355,-2360.32,0.00025205,3]
[387238772,1758664294364,-2254.46,0.00025205,3]
[387238773,1758664294376,-439.37,0.00025205,3]
[387238774,1758664294388,-877.79,0.00025205,3]
[387238775,1758664294398,-413.35,0.00025205,3]
[387238776,1758664294407,-587.39,0.00025205,3]
[387238777,1758664294416,-400.0,0.00025205,3]
[387238778,1758664294427,-257.73,0.00025205,3]
[387238779,1758664294436,-400.0,0.00025205,3]
[387238780,1758664294446,-400.0,0.00025205,3]
[387238781,1758664294457,-400.0,0.00025205,3]
[387238782,1758664294467,-400.0,0.00025205,3]
[387238783,1758664294476,-1910.92,0.00025205,3]
[387238784,1758664294485,-400.0,0.00025205,3]
[387238785,1758664294495,-2031.07,0.00025205,3]
[387238786,1758664294505,-784.22,0.00025205,3]
[387238787,1758664294515,-2495.95,0.00025205,3]
[387238788,1758664294524,-400.0,0.00025205,3]
[387238789,1758664294534,-791.36,0.00025205,3]
[387238790,1758664294543,-4896.65,0.00025205,3]
[387238791,1758664294552,-1175.49,0.00025205,3]
[387238792,1758664294562,-400.0,0.00025205,3]
[387238793,1758664294571,-2758.07,0.00025205,3]
[387238794,1758664294580,-559.88,0.00025205,3]
[387238795,1758664294590,-626.61,0.00025205,3]
[387238796,1758664294599,-976.72,0.00025205,3]
[387238797,1758664294608,-1207.96,0.00025205,3]
[387238798,1758664294617,-400.0,0.00025205,3]
[387238799,1758664294627,-400.0,0.00025205,3]
[387238800,1758664294636,-400.0,0.00025205,3]
[387238801,1758664294645,-1205.82,0.00025205,3]
[387238802,1758664294655,-1169.14,0.00025205,3]
[387238803,1758664294664,-1595.32,0.00025205,3]
[387238804,1758664294673,-1890.53,0.00025205,3]
[387238805,1758664294682,-400.0,0.00025205,3]
[387238806,1758664294691,-1049.38,0.00025205,3]
[387238807,1758664294700,-400.0,0.00025205,3]
[387238808,1758664294709,-4079.21,0.00025205,3]
[387238809,1758664294719,-685.44,0.00025205,3]
[387238810,1758664294728,-400.0,0.00025205,3]
[387238811,1758664294737,-2510.3,0.00025205,3]
[387238812,1758664294746,-1678.52,0.00025205,3]
[387238813,1758664294755,-16706.02,0.00025205,3]
[387238814,1758664294764,-400.0,0.00025205,3]
[387238815,1758664294773,-4251.49,0.00025205,3]
[387238816,1758664294783,-2074.52,0.00025205,3]
[387238817,1758664294792,-400.0,0.00025205,3]
[387238818,1758664294801,-400.0,0.00025205,3]
[387238819,1758664294811,-400.0,0.00025205,3]
[387238820,1758664294820,-400.0,0.00025205,3]
[387238821,1758664294829,-400.0,0.00025205,3]
[387238822,1758664294839,-689.28,0.00025205,3]
[387238823,1758664294848,-720.98,0.00025205,3]
[387238824,1758664294858,-400.0,0.00025205,3]
[387238825,1758664294867,-400.0,0.00025205,3]
[387238826,1758664294876,-400.0,0.00025205,3]
[387238827,1758664294886,-425.15,0.00025205,3]
[387238828,1758664294895,-3330.98,0.00025205,3]
[387238829,1758664294905,-487.18,0.00025205,3]
[387238830,1758664294914,-13418.14,0.00025205,3]
[387238831,1758664294924,-605.39,0.00025205,3]
[387238832,1758664294933,-400.0,0.00025205,3]
[387238833,1758664294942,-630.04,0.00025205,3]
[387238834,1758664294952,-425.07,0.00025205,3]
[387238835,1758664294961,-2046.35,0.00025205,3]
[387238836,1758664294970,-1822.56,0.00025205,3]
[387238837,1758664294980,-507.22,0.00025205,3]
[387238838,1758664294989,-472.22,0.00025205,3]
[387238839,1758664294998,-1189.77,0.00025205,3]
[387238840,1758664295007,-400.0,0.00025205,3]
[387238841,1758664295016,-908.29,0.00025205,3]
[387238842,1758664295025,-752.17,0.00025205,3]
[387238843,1758664295034,-545.78157188,0.00025205,3]
[387238844,1758664295044,-2819.02,0.00025205,3]
[387238845,1758664295054,-400.0,0.00025205,3]
[387238846,1758664295063,-541.99711194,0.00025205,3]
[387238847,1758664295073,-400.0,0.00025205,3]
[387238848,1758664295083,-2102.44,0.00025205,3]
[387238849,1758664295092,-7047.04,0.00025205,3]
[387238850,1758664295101,-624.12,0.00025205,3]
[387238851,1758664295111,-1532.57,0.00025205,3]
[387238852,1758664295120,-1073.44,0.00025205,3]
[387238853,1758664295130,-400.0,0.00025205,3]
[387238854,1758664295139,-458.03,0.00025205,3]
[387238855,1758664295148,-524.59,0.00025205,3]
[387238856,1758664295157,-671.0,0.00025208,2]
[387238857,1758664295166,-505.61065865,0.00025221,2]
[387238858,1758664295176,-1000.0,0.00025221,2]
[387238859,1758664295185,-1004.16759626,0.00025221,2]
[387238860,1758664295195,-1000.0,0.00025221,2]
[387238861,1758664295204,-1000.0,0.00025221,2]
[387238862,1758664295214,-1100.0,0.00025221,2]
[387238863,1758664295223,-1000.0,0.00025221,2]
[387238864,1758664295233,-1000.0,0.00025221,2]
[387238865,1758664295242,-1002.29398257,0.00025221,2]
[387238866,1758664295251,-500.0,0.00025221,2]
[387238867,1758664295262,-1000.0,0.00025221,2]
[387238868,1758664295271,-1000.0,0.00025221,2]
[387238869,1758664295280,-504.66312142,0.00025221,2]
[387238870,1758664295289,-502.41953048,0.00025221,2]
[387238871,1758664295299,-647.97841088,0.00025221,2]
[387238872,1758664295308,-500.0,0.00025221,2]
[387238873,1758664295317,-503.52505579,0.00025221,2]
[387238874,1758664295326,-1000.0,0.00025221,2]
[387238875,1758664295336,-1256.4428025,0.00025227,2]
[387238876,1758664295345,-2978.9794797,0.00025227,2]
[387238877,1758664295355,-1343.36358732,0.00025242,2]
[387238878,1758664295364,-323.02865827,0.00025269,2]
[387238879,1758664295374,-160.89848547,0.00025273,2]
[387238880,1758664295386,-211.0,0.00025278,2]
[387238881,1758664295395,-150.0,0.00025284,2]
[387238882,1758664295406,-150.0,0.00025284,2]
[387238883,1758664295415,-500.0,0.00025284,2]
[387238884,1758664295424,-200.0,0.00025284,2]
[387238885,1758664295434,-150.0,0.00025284,2]
[387238886,1758664295443,-150.0,0.00025284,2]
[387238887,1758664295455,-150.0,0.00025284,2]
[387238888,1758664295465,-500.0,0.00025284,2]
[387238889,1758664295474,-150.0,0.00025284,2]
[387238890,1758664295483,-500.0,0.00025284,2]
[387238891,1758664295493,-150.0,0.00025284,2]
[387238892,1758664295502,-250.0,0.00025284,2]
[387238893,1758664295512,-589.0,0.00025284,2]
[387238894,1758664295521,-527.6737356,0.00025284,2]
[387238895,1758664295530,-150.0,0.00025284,2]
[387238896,1758664295540,-500.0,0.00025284,2]
[387238897,1758664295549,-200.70306235,0.00025284,2]
[387238898,1758664295558,-500.0,0.00025284,2]
[387238899,1758664295567,-500.0,0.00025284,2]
[387238900,1758664295575,-500.0,0.00025284,2]
[387238901,1758664295585,-150.0,0.00025284,2]
[387238902,1758664295596,-1233.0,0.00025284,2]
[387238903,1758664295605,-500.0,0.00025284,2]
[387238904,1758664295614,-150.0,0.00025284,2]
[387238905,1758664295623,-500.0,0.00025284,2]
[387238906,1758664295633,-500.0,0.00025284,2]
[387238907,1758664295642,-150.0,0.00025284,2]
[387238908,1758664295652,-500.0,0.00025284,2]
[387238909,1758664295661,-500.0,0.00025284,2]
[387238910,1758664295670,-150.0,0.00025284,2]
[387238911,1758664295679,-434.0,0.00025284,2]
[387238912,1758664295688,-250.0,0.00025284,2]
[387238913,1758664295697,-150.0,0.00025284,2]
[387238914,1758664295707,-500.0,0.00025284,2]
[387238915,1758664295716,-500.0,0.00025284,2]
[387238916,1758664295725,-671.0,0.00025285,2]
[387238917,1758664295734,-168.0,0.00025309,2]
[387238918,1758664295743,-168.0,0.00025313,2]
[387238919,1758664295753,-500.0,0.0002533,2]
[387238920,1758664295762,-400.0,0.00025347,3]
[387238921,1758664295772,-1545.40600196,0.00025379,2]
[387238922,1758664295781,-2728.75867,0.0002541,2]
[387238923,1758664295790,-671.0,0.00025429,2]
[387238924,1758664295799,-359.625,0.00025429,2]
[387238925,1758664295809,-500.0,0.00025429,3]
[387238926,1758664295817,-500.0,0.00025429,3]
[387238927,1758664295827,-947.43,0.00025437,3]
[387238928,1758664295838,-809.64,0.00025439,3]
[387238929,1758664295848,-809.64,0.00025439,3]
[387238930,1758664295857,-809.64,0.00025439,3]
[387238931,1758664295866,-500.0,0.00025439,3]
[387238932,1758664295875,-500.0,0.00025439,3]
[387238933,1758664295885,-500.0,0.00025439,3]
[387238934,1758664295894,-500.0,0.00025439,3]
[387238935,1758664295904,-500.0,0.00025439,3]
[387238936,1758664295913,-500.0,0.00025439,3]
[387238937,1758664295922,-354.90837615,0.00025439,3]
[387238938,1758664295932,-526767.0,0.0002544,2]
[387238939,1758664295941,-1062.55697924,0.00025455,2]
[387238940,1758664295951,-300.0,0.00025478,10]
[387238941,1758664295960,-809.64,0.00025478,3]
[387238942,1758664295969,-809.64,0.00025478,3]
[387238943,1758664295978,-809.64,0.00025478,3]
[387238944,1758664295987,-809.64,0.00025478,3]
[387238945,1758664295997,-809.8037711,0.00025478,3]
[387238946,1758664296006,-300.0,0.00025478,10]
[387238947,1758664296016,-500.0,0.00025478,3]
[387238948,1758664296026,-500.0,0.00025478,3]
[387238949,1758664296036,-500.0,0.00025478,3]
[387238950,1758664296046,-500.0,0.00025478,3]
[387238951,1758664296055,-507.03868673,0.00025478,3]
[387238952,1758664296065,-400.0,0.00025479,3]
[387238953,1758664296074,-400.0,0.00025479,3]
[387238954,1758664296083,-400.0,0.00025479,3]
[387238955,1758664296092,-422.15,0.00025479,3]
[387238956,1758664296102,-400.0,0.00025479,3]
[387238957,1758664296111,-400.0,0.00025479,3]
[387238958,1758664296121,-400.0,0.00025479,3]
[387238959,1758664296131,-400.0,0.00025479,3]
[387238960,1758664296140,-400.0,0.00025479,3]
[387238961,1758664296150,-400.0,0.00025479,3]
[387238962,1758664296159,-722.3,0.00025479,3]
[387238963,1758664296168,-400.0,0.00025479,3]
[387238964,1758664296178,-425.13,0.00025479,3]
[387238965,1758664296187,-400.0,0.00025479,3]
[387238966,1758664296196,-463.61,0.00025479,3]
[387238967,1758664296206,-400.0,0.00025479,3]
[387238968,1758664296215,-400.0,0.00025479,3]
[387238969,1758664296225,-400.0,0.00025479,3]
[387238970,1758664296234,-400.81,0.00025479,3]
[387238971,1758664296244,-606.67,0.00025479,3]
[387238972,1758664296253,-400.0,0.00025479,3]
[387238973,1758664296263,-400.0,0.00025479,3]
[387238974,1758664296272,-412.56367172,0.00025479,3]
[387238975,1758664296282,-558.51,0.00025479,3]
[387238976,1758664296292,-400.0,0.00025479,3]
[387238977,1758664296301,-400.0,0.00025479,3]
[387238978,1758664296311,-517.79,0.00025479,3]
[387238979,1758664296320,-410.1,0.00025479,3]
[387238980,1758664296330,-400.0,0.00025479,3]
[387238981,1758664296339,-400.0,0.00025479,3]
[387238982,1758664296348,-513.24,0.00025479,3]
[387238983,1758664296358,-864.38,0.00025479,3]
[387238984,1758664296367,-400.0,0.00025479,3]
[387238985,1758664296380,-400.0,0.00025479,3]
[387238986,1758664296389,-400.0,0.00025479,3]
[387238987,1758664296399,-400.0,0.00025479,3]
[387238988,1758664296410,-400.0,0.00025479,3]
[387238989,1758664296421,-400.0,0.00025479,3]
[387238990,1758664296433,-400.0,0.00025479,3]
[387238991,1758664296443,-1113.94,0.00025479,3]
[387238992,1758664296453,-1113.94,0.00025479,3]
[387238993,1758664296462,-400.0,0.00025479,3]
[387238994,1758664296471,-499.32,0.00025479,3]
[387238995,1758664296480,-400.0,0.00025479,3]
[387238996,1758664296490,-400.0,0.00025479,3]
[387238997,1758664296500,-417.9116847,0.00025479,3]
[387238998,1758664296509,-400.0,0.00025479,3]
[387238999,1758664296521,-400.0,0.00025479,3]
[387239000,1758664296531,-400.0,0.00025479,3]
[387239001,1758664296541,-701.54,0.00025479,3]
[387239002,1758664296551,-448.15,0.00025479,3]
[387239003,1758664296560,-527.27,0.00025479,3]
[387239004,1758664296569,-411.5551484,0.00025479,3]
[387239005,1758664296579,-400.0,0.00025479,3]
[387239006,1758664296590,-400.0,0.00025479,3]
[387239007,1758664296599,-400.0,0.00025479,3]
[387239008,1758664296609,-433.43,0.00025479,3]
[387239009,1758664296619,-400.0,0.00025479,3]
[387239010,1758664296628,-1431.46,0.00025479,3]
[387239011,1758664296637,-400.0,0.00025479,3]
[387239012,1758664296647,-888.36,0.00025479,3]
[387239013,1758664296657,-400.0,0.00025479,3]
[387239014,1758664296667,-400.0,0.00025479,3]
[387239015,1758664296676,-500.78,0.00025479,3]
[387239016,1758664296686,-400.0,0.00025479,3]
[387239017,1758664296696,-400.0,0.00025479,3]
[387239018,1758664296706,-415.37,0.00025479,3]
[387239019,1758664296716,-400.0,0.00025479,3]
[387239020,1758664296726,-851.65,0.00025479,3]
[387239021,1758664296736,-449.67,0.00025479,3]
[387239022,1758664296746,-514.2,0.00025479,3]
[387239023,1758664296756,-696.09,0.00025479,3]
[387239024,1758664296765,-400.0,0.00025479,3]
[387239025,1758664296775,-942.3,0.00025479,3]
[387239026,1758664296795,-401.11,0.00025479,3]
[387239027,1758664296806,-409.1,0.00025479,3]
[387239028,1758664296816,-400.0,0.00025479,3]
[387239029,1758664296826,-400.0,0.00025479,3]
[387239030,1758664296837,-400.0,0.00025479,3]
[387239031,1758664296847,-483.66,0.00025479,3]
[387239032,1758664296859,-700.73,0.00025479,3]
[387239033,1758664296870,-1218.15,0.00025479,3]
[387239034,1758664296882,-432.38,0.00025479,3]
[387239035,1758664296893,-400.0,0.00025479,3]
[387239036,1758664296904,-400.0,0.00025479,3]
[387239037,1758664296914,-534.81353614,0.00025479,3]
[387239038,1758664296925,-413.32,0.00025479,3]
[387239039,1758664296937,-600.39,0.00025479,3]
[387239040,1758664296947,-400.0,0.00025479,3]
[387239041,1758664296957,-400.0,0.00025479,3]
[387239042,1758664296967,-525.79,0.00025479,3]
[387239043,1758664296977,-400.0,0.00025479,3]
[387239044,1758664296986,-400.0,0.00025479,3]
[387239045,1758664296996,-585.89,0.00025479,3]
[387239046,1758664297006,-400.0,0.00025479,3]
[387239047,1758664297017,-400.0,0.00025479,3]
[387239048,1758664297027,-1162.35,0.00025479,3]
[387239049,1758664297038,-869.19,0.00025479,3]
[387239050,1758664297048,-683.96,0.00025479,3]
[387239051,1758664297058,-400.0,0.00025479,3]
[387239052,1758664297068,-853.3,0.00025479,3]
[387239053,1758664297078,-400.0,0.00025479,3]
[387239054,1758664297087,-400.0,0.00025479,3]
[387239055,1758664297097,-684.3,0.00025479,3]
[387239056,1758664297107,-400.0,0.00025479,3]
[387239057,1758664297117,-249.59362565,0.00025479,3]
[387239058,1758664297127,-400.0,0.00025479,3]
[387239059,1758664297137,-421.32534825,0.00025479,3]
[387239060,1758664297147,-406.25009553,0.00025479,3]
[387239061,1758664297158,-714.46,0.00025479,3]
[387239062,1758664297168,-400.0,0.00025479,3]
[387239063,1758664297178,-684.69,0.00025479,3]
[387239064,1758664297189,-684.69,0.00025479,3]
[387239065,1758664297201,-400.0,0.00025479,3]
[387239066,1758664297212,-400.0,0.00025479,3]
[387239067,1758664297223,-433.77,0.00025479,3]
[387239068,1758664297234,-400.0,0.00025479,3]
[387239069,1758664297245,-400.0,0.00025479,3]
[387239070,1758664297257,-399.27928913,0.00025479,3]
[387239071,1758664297267,-451.05,0.00025479,3]
[387239072,1758664297277,-1130.1,0.00025479,3]
[387239073,1758664297287,-400.0,0.00025479,3]
[387239074,1758664297297,-1034.82,0.00025479,3]
[387239075,1758664297307,-414.11,0.00025479,3]
[387239076,1758664297319,-400.0,0.00025479,3]
[387239077,1758664297331,-411.88890539,0.00025479,3]
[387239078,1758664297342,-400.0,0.00025479,3]
[387239079,1758664297352,-400.0,0.00025479,3]
[387239080,1758664297362,-568.34,0.00025479,3]
[387239081,1758664297373,-400.0,0.00025479,3]
[387239082,1758664297387,-497.27,0.00025479,3]
[387239083,1758664297397,-400.0,0.00025479,3]
[387239084,1758664297407,-483.14,0.00025479,3]
[387239085,1758664297419,-400.0,0.00025479,3]
[387239086,1758664297429,-400.0,0.00025479,3]
[387239087,1758664297440,-400.0,0.00025479,3]
[387239088,1758664297450,-400.0,0.00025479,3]
[387239089,1758664297460,-963.02,0.00025479,3]
[387239090,1758664297470,-442.92,0.00025479,3]
[387239091,1758664297480,-400.0,0.00025479,3]
[387239092,1758664297491,-400.0,0.00025479,3]
[387239093,1758664297501,-400.0,0.00025479,3]
[387239094,1758664297511,-390.11304457,0.00025479,3]
[387239095,1758664297521,-419.2,0.00025479,3]
[387239096,1758664297531,-400.0,0.00025479,3]
[387239097,1758664297542,-495.44,0.00025479,3]
[387239098,1758664297553,-400.0,0.00025479,3]
[387239099,1758664297564,-1113.1,0.00025479,3]
[387239100,1758664297574,-564.87,0.00025479,3]
[387239101,1758664297584,-400.0,0.00025479,3]
[387239102,1758664297594,-400.0,0.00025479,3]
[387239103,1758664297606,-400.0,0.00025479,3]
[387239104,1758664297616,-442.1,0.00025479,3]
[387239105,1758664297626,-612.62,0.00025479,3]
[387239106,1758664297636,-400.0,0.00025479,3]
[387239107,1758664297646,-544.44,0.00025479,3]
[387239108,1758664297657,-553.48,0.00025479,3]
[387239109,1758664297668,-400.0,0.00025479,3]
[387239110,1758664297678,-811.92,0.00025479,3]
[387239111,1758664297688,-400.0,0.00025479,3]
[387239112,1758664297698,-400.0,0.00025479,3]
[387239113,1758664297708,-866.52,0.00025479,3]
[387239114,1758664297718,-400.0,0.00025479,3]
[387239115,1758664297729,-325.0754081,0.00025479,3]
[387239116,1758664297739,-400.0,0.00025479,3]
[387239117,1758664297749,-400.0,0.00025479,3]
[387239118,1758664297760,-400.0,0.00025479,3]
[387239119,1758664297770,-1271.99,0.00025479,3]
[387239120,1758664297783,-400.0,0.00025479,3]
[387239121,1758664297794,-246.69862235,0.00025479,2]
[387239122,1758664297805,-555.94,0.00025479,3]
[387239123,1758664297816,-400.0,0.00025479,3]
[387239124,1758664297826,-516.66,0.00025479,3]
[387239125,1758664297837,-443.34,0.00025479,3]
[387239126,1758664297847,-460.81,0.00025479,3]
[387239127,1758664297857,-400.0,0.00025479,3]
[387239128,1758664297867,-400.0,0.00025479,3]
[387239129,1758664297878,-502.53,0.00025479,3]
[387239130,1758664297889,-505.37,0.00025479,3]
[387239131,1758664297899,-542.19,0.00025479,3]
[387239132,1758664297909,-400.0,0.00025479,3]
[387239133,1758664297919,-688.7,0.00025479,3]
[387239134,1758664297930,-1015.44,0.00025479,3]
[387239135,1758664297942,-1292.63,0.00025479,3]
[387239136,1758664297952,-400.0,0.00025479,3]
[387239137,1758664297962,-1611.73,0.00025479,3]
[387239138,1758664297972,-400.0,0.00025479,3]
[387239139,1758664297983,-637.7,0.00025479,3]
[387239140,1758664297993,-400.0,0.00025479,3]
[387239141,1758664298003,-400.0,0.00025479,3]
[387239142,1758664298015,-1000.0,0.00025479,3]
[387239143,1758664298026,-660.83,0.00025479,3]
[387239144,1758664298038,-549.84,0.00025479,3]
[387239145,1758664298049,-1262.83,0.00025479,3]
[387239146,1758664298061,-405.41514973,0.00025479,3]
[387239147,1758664298070,-152.80108456,0.00025479,3]
[387239148,1758664298080,-234.45399428,0.00025479,3]
[387239149,1758664298091,-434.72663903,0.00025479,3]
[387239150,1758664298101,-400.0,0.00025479,3]
[387239151,1758664298111,-511.14,0.00025479,3]
[387239152,1758664298121,-1072.23,0.00025479,3]
[387239153,1758664298132,-435.66,0.00025479,3]
[387239154,1758664298142,-400.0,0.00025479,3]
[387239155,1758664298152,-446.42,0.00025479,3]
[387239156,1758664298162,-956.24,0.00025479,3]
[387239157,1758664298173,-804.81,0.00025479,3]
[387239158,1758664298183,-493.33,0.00025479,3]
[387239159,1758664298195,-400.0,0.00025479,3]
[387239160,1758664298208,-400.0,0.00025479,3]
[387239161,1758664298220,-400.0,0.00025479,3]
[387239162,1758664298232,-400.0,0.00025479,3]
[387239163,1758664298553,-400.0,0.00025479,3]
[387239164,1758664298567,-400.0,0.00025479,3]
[387239165,1758664298577,-409.22211384,0.00025479,3]
[387239166,1758664298586,-425.12,0.00025479,3]
[387239167,1758664298596,-400.0,0.00025479,3]
[387239168,1758664298605,-400.0,0.00025479,3]
[387239169,1758664298615,-400.0,0.00025479,3]
[387239170,1758664298625,-536.14,0.00025479,3]
[387239171,1758664298635,-400.0,0.00025479,3]
[387239172,1758664298644,-400.0,0.00025479,3]
[387239173,1758664298654,-400.0,0.00025479,3]
[387239174,1758664298664,-400.0,0.00025479,3]
[387239175,1758664298674,-400.0,0.00025479,3]
[387239176,1758664298683,-407.39562683,0.00025479,3]
[387239177,1758664298694,-400.0,0.00025479,3]
[387239178,1758664298704,-400.0,0.00025479,3]
[387239179,1758664298714,-400.0,0.00025479,3]
[387239180,1758664298725,-647.53,0.00025479,3]
[387239181,1758664298734,-1446.35,0.00025479,3]
[387239182,1758664298744,-400.0,0.00025479,3]
[387239183,1758664298754,-400.0,0.00025479,3]
[387239184,1758664298764,-400.0,0.00025479,3]
[387239185,1758664298774,-400.0,0.00025479,3]
[387239186,1758664298784,-400.0,0.00025479,3]
[387239187,1758664298793,-712.76,0.00025479,3]
[387239188,1758664298803,-400.0,0.00025479,3]
[387239189,1758664298812,-400.0,0.00025479,3]
[387239190,1758664298822,-742.51,0.00025479,3]
[387239191,1758664298831,-400.0,0.00025479,3]
[387239192,1758664298841,-400.0,0.00025479,3]
[387239193,1758664298851,-609.25,0.00025479,3]
[387239194,1758664298860,-1004.12,0.00025479,3]
[387239195,1758664298870,-400.0,0.00025479,3]
[387239196,1758664298879,-400.0,0.00025479,3]
[387239197,1758664298888,-400.0,0.00025479,3]
[387239198,1758664298898,-400.0,0.00025479,3]
[387239199,1758664298909,-1267.73,0.00025479,3]
[387239200,1758664298918,-400.0,0.00025479,3]
[387239201,1758664298927,-1089.2,0.00025479,3]
[387239202,1758664298936,-400.0,0.00025479,3]
[387239203,1758664298946,-400.0,0.00025479,3]
[387239204,1758664298955,-936.94,0.00025479,3]
[387239205,1758664298965,-400.0,0.00025479,3]
[387239206,1758664298974,-400.0,0.00025479,3]
[387239207,1758664298983,-400.0,0.00025479,3]
[387239208,1758664298993,-400.0,0.00025479,3]